[Event "WR Chess Masters Cup 2024"]
[Site "London"]
[Date "2024.10.14"]
[Round "1.1"]
[White "Erigaisi Arjun"]
[Black "Sivanandan, Bodhana"]
[Result "1-0"]
[ECO "D00"]
[WhiteElo "2797"]
[BlackElo "2088"]
[Annotator "TA"]
[PlyCount "89"]
[EventDate "2024.10.12"]
[EventType "k.o."]
[EventCountry "ENG"]
[SourceTitle "playchess.com"]
[Source "ChessBase"]
[SourceQuality "1"]
[TimeControl "30/3600:20/1800:1800"]

{[%evp 9,88,1,0,0,26,26,24,25,25,15,67,63,61,51,62,63,91,81,142,157,162,111,149,152,343,243,261,236,355,370,572,585,841,840,791,552,466,319,846,861,839,839,839,839,830,830,823,823,29968,29969,6539,6539,5489,5110,29984,29985,29985,29986,29976,29977,29977,29978,29977,29979,29994,29992,29995,29993,29993,29993,29993,29994,29994,29994,29995,29996,29996,29996,29997,29998,29999]} 1. d4 {[%emt 0:00:05]} d5 {[%emt 0:00:15]} 2. Bf4 {[%emt 0:00:06]} c5 {[%emt 0:00:14]} 3. e3 {[%emt 0:00:06]} Nc6 {[%emt 0:00:23]} 4. Bb5 {[%emt 0:00:07]} e6 {[%emt 0:01:53]} 5. Nf3 {[%emt 0:00:19]} Nf6 {[%emt 0:01:41]} 6. O-O {[%emt 0:00:08]} Be7 {[%emt 0:02:15]} 7. dxc5 {[%emt 0:00:23]} Bxc5 {[%emt 0:00:36]} 8. c4 {[%emt 0:00:04] White has an edge.} Bd7 {[%emt 0:03:27]} 9. Nc3 {[%emt 0:02:07]} dxc4 {[%emt 0:03:17]} ({Better is} 9... a6 $11 10. Bxc6 Bxc6) 10. Qe2 {[%emt 0:00:14][%cal Of1d1]} O-O {[%emt 0:01:45]} 11. Rfd1 {[%emt 0:00:25][%cal Ob5c6]} Qc8 {[%emt 0:03:20]} 12. Bxc4 {[%emt 0:03:14][%cal Bb5c4,Bc4d3,Bd3b1][%mdl 32]} a6 {[%emt 0:02:53]} 13. Rac1 {[%emt 0:00:24]} b5 {[%emt 0:01:58]} (13... Rd8 $142) 14. Bd3 $16 {[%emt 0:00:19] Ne4 would now be deadly.} Be7 {[%emt 0:01:19]} 15. Ne5 {[%emt 0:02:15]} (15. Ne4 $18) 15... Rd8 {[%emt 0:01:52]} 16. Ne4 {[%emt 0:01:04] [#] Strongly threatening Nxf6+. White has more active pieces.} Nd5 {[%emt 0:03:48] This costs Black the game.} (16... Be8 $16 17. Ng5 Qb7 18. Ngxf7 Rdc8) 17. Ng5 {[%emt 0:00:46]} Bxg5 {[%emt 0:04:30]} 18. Bxg5 $40 {[%emt 0:00:08][%mdl 128] White is out for blood.} Rf8 {[%emt 0:01:23]} (18... Nxe5 $142 19. Rxc8 Rdxc8) 19. Bb1 $18 {[%emt 0:02:03]} f5 {[%emt 0:03:47]} (19... Nxe5 $142 20. Rxc8 Raxc8) 20. e4 {[%emt 0:00:46]} fxe4 {[%emt 0:03:16]} 21. Qxe4 {[%emt 0:01:08][%csl Gb1][%cal Re4h7] [#]} Rf5 {[%emt 0:01:28]} 22. Nxc6 {[%emt 0:00:18]} Bxc6 {[%emt 0:00:11]} 23. Rxd5 {[%emt 0:03:10]} Rxd5 {[%emt 0:04:05]} (23... Qe8 24. Rxc6 exd5 25. Qxe8+ (25. Qxf5 $2 Qe1#) 25... Rxe8) 24. Qxh7+ {[%emt 0:00:08] Black is weak on the dark squares} Kf8 {[%emt 0:00:23]} 25. Qh8+ {[%emt 0:00:07]} Kf7 {[%emt 0:00:16]} 26. Qh5+ {[%emt 0:00:06]} Kf8 {[%emt 0:01:46]} 27. Bg6 {[%emt 0:00:09][%cal Rh5h8]} Rxg5 {[%emt 0:00:50]} 28. Qxg5 {[%emt 0:00:06] Qc5+ would kill now.} Qd8 {[%emt 0:04:58]} 29. Qc5+ {[%emt 0:00:14]} Qe7 {[%emt 0:00:13]} 30. Qxc6 {[%emt 0:00:00]} Rd8 {[%emt 0:00:00]} 31. g3 {[%emt 0:00:30]} Qf6 {[%emt 0:01:59]} 32. Qc5+ {[%emt 0:00:09] White mates.} Kg8 {[%emt 0:01:20]} 33. Qh5 {[%emt 0:00:09]} Qd4 {[%emt 0:12:40]} 34. Qh7+ {[%emt 0:00:54]} Kf8 {[%emt 0:00:12][%cal Bg8f8,Bf8e7,Be7f6,Bf6g5,Bg5g4,Bg4h5][%mdl 32]} 35. Qh8+ {[%emt 0:00:12]} Ke7 {[%emt 0:00:13]} 36. Rc7+ {[%emt 0:00:06]} Kf6 {[%emt 0:01:05]} 37. Qxg7+ {[%emt 0:00:08]} Kg5 {[%emt 0:00:10]} 38. h4+ {[%emt 0:00:37]} Kg4 {[%emt 0:00:24]} 39. Be4+ {[%emt 0:00:24]} Qxg7 {[%emt 0:01:34]} 40. Rxg7+ {[%emt 0:00:06] KRB-KR} Kh5 {[%emt 0:00:24]} 41. Rh7+ {[%emt 0:00:07]} Kg4 {[%emt 0:00:22]} 42. Kg2 {[%emt 0:00:04][%csl Ge4,Gg2][%cal Rf2f3]} Rd2 {[%emt 0:01:00]} 43. Rg7+ {[%emt 0:00:07]} Kh5 {[%emt 0:00:15]} 44. Kh3 {[%emt 0:00:06][%cal Rg7h7]} Rxf2 {[%emt 0:00:23]} 45. Rh7# {[%emt 0:00:06] Weighted Error Value: White=0.31/Black=1.10.  Loses game:     	---       	Black=1      Mistake:       	White=1     	Black=5      Inaccurate:     	---       	Black=4      OK:         	White=8     	Black=4      Best:        	White=1     	Black=2} 1-0

[Event "WR Chess Masters Cup 2024"]
[Site "London"]
[Date "2024.10.14"]
[Round "1.1"]
[White "Abdusattorov, Nodirbek"]
[Black "Kosteniuk, Alexandra"]
[Result "0-1"]
[ECO "B15"]
[WhiteElo "2783"]
[BlackElo "2480"]
[Annotator "TA"]
[PlyCount "76"]
[EventDate "2024.10.12"]
[EventType "k.o."]
[EventCountry "ENG"]
[SourceTitle "playchess.com"]
[Source "ChessBase"]
[SourceQuality "1"]
[TimeControl "30/3600:20/1800:1800"]

{[%evp 12,76,23,17,58,63,67,70,61,61,86,93,101,94,117,124,195,189,215,142,155,150,143,126,135,110,131,131,119,129,157,149,182,183,182,196,195,171,181,139,147,160,166,160,156,154,168,150,160,145,167,152,237,0,0,-980,-966,-961,-954,-1281,-264,-2062,-1963,-1757,-1745,-1527,-1275]} 1. e4 {[%emt 0:00:08]} c6 {[%emt 0:00:04]} 2. d4 {[%emt 0:00:50]} d5 {[%emt 0:00:05]} 3. Nd2 {[%emt 0:00:07]} dxe4 {[%emt 0:00:05]} 4. Nxe4 {[%emt 0:00:03]} Nf6 {[%emt 0:00:04]} 5. Nxf6+ {[%emt 0:00:12]} exf6 {[%emt 0:00:03]} 6. c3 {[%emt 0:00:06]} Bd6 {[%emt 0:00:15]} 7. Bd3 {[%emt 0:00:07]} h5 {[%emt 0:01:36]} 8. Nf3 {[%emt 0:05:05][%cal Bg1f3,Bf3d2,Bd2e4][%mdl 32]} h4 {[%emt 0:09:00]} 9. h3 {[%emt 0:01:28]} Be6 {[%emt 0:01:26] White is slightly better.} 10. O-O {[%emt 0:00:39]} Qd7 {[%emt 0:03:34]} 11. Re1 {[%emt 0:02:50]} Kf8 {[%emt 0:03:27]} 12. Nd2 {[%emt 0:02:58]} Bc7 {[%emt 0:19:17]} 13. Ne4 {[%emt 0:01:52]} b6 {[%emt 0:00:17] Wards off Nc5} (13... Bd5 $16) 14. Qf3 $18 {[%emt 0:02:47]} Qd5 {[%emt 0:02:19]} 15. b3 {[%emt 0:03:34]} Qh5 {[%emt 0:02:50]} 16. Qe3 {[%emt 0:05:59]} Nd7 {[%emt 0:00:34]} 17. Ba3+ {[%emt 0:00:09]} Kg8 {[%emt 0:00:09]} 18. c4 {[%emt 0:00:42]} f5 {[%emt 0:04:39]} 19. Ng5 {[%emt 0:02:27]} f4 {[%emt 0:02:57]} 20. Qf3 {[%emt 0:00:08]} Qxf3 {[%emt 0:01:21]} 21. Nxf3 {[%emt 0:00:27] Strongly threatening Be4.} (21. gxf3 Nf8 22. Bxf8 Rxf8) 21... Nf6 {[%emt 0:01:27]} 22. Ng5 {[%emt 0:05:34]} Bd7 {[%emt 0:00:43]} 23. Re7 {[%emt 0:00:19]} Rh5 {[%emt 0:01:25]} 24. Nxf7 {[%emt 0:03:44] And now Bg6 would win.} Re8 {[%emt 0:00:29]} 25. Bg6 {[%emt 0:05:20]} Ra5 {[%emt 0:00:02] [#]} 26. Nh6+ $1 {[%emt 0:02:03][%mdl 512]} gxh6 {[%emt 0:00:03]} 27. Bxe8 {[%emt 0:00:06]} Bxe8 {[%emt 0:01:08]} 28. Bb4 {[%emt 0:02:30]} Bd8 {[%emt 0:00:01]} 29. Rb7 {[%emt 0:01:18][%mdl 1024] White has strong compensation.} Rg5 {[%emt 0:00:22] [#]} 30. Rb8 $1 {[%emt 0:00:00]} (30. Rxa7 f3 31. Re1 Rxg2+ (31... fxg2 $2 32. Ra8 $18) 32. Kf1 Rh2 $11) 30... Bc7 {[%emt 0:00:00] [#]} 31. Rc8 {[%emt 0:01:04]} f3 {[%emt 0:03:20]} (31... c5 $16) 32. g4 $2 {[%emt 0:02:03]} (32. Rxc7 $18 Rxg2+ 33. Kh1) 32... hxg3 $1 $11 {[%emt 0:01:01] ...Rg7 would now be deadly.} 33. Rf1 $2 {[%emt 0:16:07][%mdl 8192]} (33. Rxc7 $2 Ne4 34. fxg3 Rxg3+ 35. Kf1 Rxh3 $19 (35... f2 $2 36. Re7 $19)) (33. Be7 $11 Ne4 (33... gxf2+ $2 34. Kxf2 Ne4+ 35. Kxf3 $18) 34. Bxg5 (34. Rxc7 gxf2+ 35. Kh1 Rg3 36. Kh2 Rg2+ 37. Kh1 Ng3#) (34. Rxe8+ Kf7 $11) 34... Nxf2 35. Rxe8+ Kf7 36. Re7+ Kf8 37. Rxc7 (37. Bxh6+ $2 Kxe7 38. Kf1 Nxh3 $19) 37... Nxh3+ 38. Kh1 Nf2+ 39. Kg1 Nh3+ 40. Kh1 Nf2+ 41. Kg1 Nh3+) 33... g2 $19 {[%emt 0:08:59]} 34. Re1 {[%emt 0:00:02] [#]} Rh5 $1 {[%emt 0:00:04][%cal Oh5h3]} 35. Re3 {[%emt 0:00:20] [#]} (35. Rexe8+ Nxe8) 35... Bh2+ $1 {[%emt 0:02:48][%mdl 512]} 36. Kxh2 {[%emt 0:00:00] [#]} Rxh3+ {[%emt 0:00:05][%mdl 512] Black is clearly winning.} 37. Kxh3 {[%emt 0:00:02]} g1=Q {[%emt 0:00:06] ( -> ...Qg4+)} (37... g1=B $2 {perishes.} 38. Rxf3 (38. Rcxe8+ Nxe8 39. Rxe8+ Kg7 $18) 38... Kg7 39. Rc7+ Kg6 40. Rg3+ (40. Rxa7 Bd7+ 41. Rxd7 Nxd7 $18) 40... Kh5 41. Rxg1 $18) 38. Rcxe8+ {[%emt 0:00:01]} Kh7 {[%emt 0:02:04] Black used his chance.   Weighted Error Value: White=0.50/Black=0.10 (very precise) .  Loses game:     	White=1     	---        Missed win:     	White=1     	---        Mistake:       	---       	Black=2      Inaccurate:     	White=1     	---        OK:         	White=19    	Black=6      Best:        	White=1     	Black=6      Strong:       	---       	Black=1} 0-1

[Event "WR Chess Masters Cup 2024"]
[Site "London"]
[Date "2024.10.14"]
[Round "1.1"]
[White "Firouzja, Alireza"]
[Black "Vaishali, Rameshbabu"]
[Result "1-0"]
[ECO "C02"]
[WhiteElo "2767"]
[BlackElo "2487"]
[Annotator "TA"]
[PlyCount "141"]
[EventDate "2024.10.12"]
[EventType "k.o."]
[EventCountry "ENG"]
[SourceTitle "playchess.com"]
[Source "ChessBase"]
[SourceQuality "1"]
[TimeControl "30/3600:20/1800:1800"]

{[%evp 55,141,24,25,20,17,14,65,47,134,137,145,141,149,126,121,137,150,120,116,117,113,116,123,110,102,99,128,135,135,135,135,135,135,135,654,654,654,647,647,647,8595,10326,9345,9111,8920,8813,4132,3269,29957,29959,29962,29961,29963,29965,29966,29967,29967,29968,29968,29969,29969,29970,29970,29971,29972,29973,29973,29969,29969,5081,29976,29978,29978,29979,29979,29980,29980,29981,29981,29982,29982,29983,29983,29984,29984,29985,29986,29987]} 1. e4 {[%emt 0:00:03]} e6 {[%emt 0:00:07]} 2. d4 {[%emt 0:00:19]} d5 {[%emt 0:00:06]} 3. e5 {[%emt 0:00:30]} c5 {[%emt 0:00:05]} 4. c3 {[%emt 0:00:05]} Nc6 {[%emt 0:00:04]} 5. Nf3 {[%emt 0:00:07]} Bd7 {[%emt 0:00:11]} 6. Be2 {[%emt 0:00:38]} f6 {[%emt 0:00:10]} 7. O-O {[%emt 0:01:38]} fxe5 {[%emt 0:00:08]} 8. Nxe5 {[%emt 0:00:32]} Nxe5 {[%emt 0:00:07]} 9. dxe5 {[%emt 0:00:05]} Qc7 {[%emt 0:00:02]} 10. Re1 {[%emt 0:02:15] The modern move.} O-O-O {[%emt 0:00:15]} 11. Bf1 {[%emt 0:04:40]} Ne7 {[%emt 0:00:51] C02: French: Advance Variation.} 12. c4 $5 {[%emt 0:01:42][%mdl 4] A promising side line.} Kb8 $146 {[%emt 0:03:11]} ({Predecessor:} 12... d4 13. Nd2 Nc6 14. Nf3 h6 15. Bd3 g5 16. h3 Bg7 17. Qe2 Rdf8 18. Be4 b6 19. Bc2 {1-0 Schroeder,J (2235)-Andersen,H (2222) BL2-West 1112 2011 (6.8)}) 13. Nc3 {[%emt 0:02:11]} dxc4 {[%emt 0:00:55]} 14. Bxc4 {[%emt 0:05:06]} Nf5 {[%emt 0:09:17]} 15. Be3 {[%emt 0:05:30]} Be7 {[%emt 0:08:50]} 16. Qg4 {[%emt 0:00:58]} h5 {[%emt 0:07:32]} 17. Qg6 {[%emt 0:01:32]} Nh4 {[%emt 0:09:06]} 18. Qf7 {[%emt 0:02:31]} Bc8 {[%emt 0:04:56]} 19. Nb5 {[%emt 0:08:28]} Qc6 {[%emt 0:00:05]} 20. Bf1 {[%emt 0:00:53]} Nf5 {[%emt 0:00:34]} 21. Nd6 {[%emt 0:02:21]} Rdf8 {[%emt 0:02:53]} 22. Qg6 {[%emt 0:00:07]} Nxd6 {[%emt 0:04:16]} 23. exd6 {[%emt 0:00:07]} Bxd6 {[%emt 0:00:02]} 24. Rac1 {[%emt 0:04:39]} Qc7 {[%emt 0:00:44]} 25. h3 {[%emt 0:04:01]} Rf6 {[%emt 0:00:55]} 26. Qd3 {[%emt 0:01:07]} Rd8 {[%emt 0:00:26]} 27. Qc2 {[%emt 0:04:17]} Rf5 {[%emt 0:00:58]} 28. Bd3 {[%emt 0:00:07]} Re5 {[%emt 0:00:40]} 29. Be4 {[%emt 0:00:06]} g5 {[%emt 0:00:58]} 30. Bd2 {[%emt 0:00:00]} c4 {[%emt 0:00:00]} (30... g4 $11) 31. Qxc4 $14 {[%emt 0:03:12]} Rc5 {[%emt 0:06:00]} (31... Qxc4 $14 32. Rxc4 Rb5) 32. Qe2 $16 {[%emt 0:00:50]} Bh2+ {[%emt 0:02:41]} 33. Kh1 {[%emt 0:00:50]} Bf4 {[%emt 0:00:17]} 34. Bxf4 {[%emt 0:05:06]} gxf4 {[%emt 0:00:03]} 35. Rxc5 {[%emt 0:00:06]} Qxc5 {[%emt 0:00:04]} 36. Bf3 {[%emt 0:00:51]} h4 {[%emt 0:02:12]} 37. Kg1 {[%emt 0:00:22]} Rd4 {[%emt 0:05:20]} 38. a3 {[%emt 0:00:30]} a5 {[%emt 0:03:13]} 39. Qe5+ {[%emt 0:08:37]} Qxe5 {[%emt 0:00:03]} 40. Rxe5 {[%emt 0:00:05]} b6 {[%emt 0:07:49]} 41. Re4 {[%emt 0:08:17]} Rxe4 {[%emt 0:00:33]} 42. Bxe4 {[%emt 0:00:02]} Kc7 {[%emt 0:00:02] [#]} 43. g3 $1 {[%emt 0:00:09]} fxg3 {[%emt 0:01:47]} 44. fxg3 {[%emt 0:00:04]} Kd6 $2 {[%emt 0:00:14][%mdl 8192]} (44... hxg3 $16 45. h4 (45. Kg2 Kd6 $18) 45... Kd8) 45. gxh4 $18 {[%emt 0:00:16]} Ke5 {[%emt 0:00:01]} 46. h5 {[%emt 0:00:10]} Kf6 {[%emt 0:00:19]} 47. h6 {[%emt 0:00:10]} e5 {[%emt 0:00:02]} 48. h7 {[%emt 0:00:47]} Kg7 {[%emt 0:00:02]} 49. Kg2 {[%emt 0:00:05]} Bd7 {[%emt 0:00:20]} 50. Kg3 {[%emt 0:00:00]} Be6 {[%emt 0:00:00]} 51. h4 {[%emt 0:10:31]} Bb3 {[%emt 0:13:21]} 52. Kg4 {[%emt 0:00:48]} b5 {[%emt 0:01:27]} 53. h5 {[%emt 0:01:01]} b4 {[%emt 0:02:15]} 54. axb4 {[%emt 0:01:14]} axb4 {[%emt 0:00:02]} 55. h6+ {[%emt 0:00:29]} Kh8 {[%emt 0:00:02]} 56. Kg5 {[%emt 0:00:05]} Bd1 {[%emt 0:06:09]} 57. Kf6 {[%emt 0:00:08]} b3 {[%emt 0:00:06]} 58. Kxe5 {[%emt 0:00:52]} Bg4 {[%emt 0:01:24]} 59. Kd4 {[%emt 0:00:39]} Bd7 {[%emt 0:01:44]} 60. Kc3 {[%emt 0:00:52]} Bf5 {[%emt 0:00:09]} 61. Bd3 {[%emt 0:00:18]} Be4 {[%emt 0:01:04]} 62. Bc4 {[%emt 0:00:37]} Kxh7 {[%emt 0:00:37] [#]} 63. Bd3 $1 {[%emt 0:00:25]} ({Weaker is} 63. Bxb3 Kxh6 64. Kd4 Bg6 $14) 63... Bxd3 {[%emt 0:00:03]} 64. Kxd3 {[%emt 0:00:04]} Kxh6 {[%emt 0:00:02]} 65. Kc3 {[%emt 0:00:07]} Kg6 {[%emt 0:00:02]} 66. Kxb3 {[%emt 0:00:06]} Kf6 {[%emt 0:00:01]} 67. Kc4 {[%emt 0:00:34]} Ke6 {[%emt 0:00:02]} 68. Kc5 {[%emt 0:00:13]} Kd7 {[%emt 0:00:02]} 69. Kb6 {[%emt 0:00:11]} Kc8 {[%emt 0:00:03]} 70. b4 {[%emt 0:00:27]} Kb8 {[%emt 0:00:01]} 71. b5 {[%emt 0:00:06]} 1-0

[Event "WR Chess Masters Cup 2024"]
[Site "London"]
[Date "2024.10.14"]
[Round "1.1"]
[White "Anand, Viswanathan"]
[Black "Royal, Shreyas"]
[Result "1/2-1/2"]
[ECO "C84"]
[WhiteElo "2751"]
[BlackElo "2519"]
[Annotator "TA"]
[PlyCount "106"]
[EventDate "2024.10.12"]
[EventType "k.o."]
[EventCountry "ENG"]
[SourceTitle "playchess.com"]
[Source "ChessBase"]
[SourceQuality "1"]
[TimeControl "30/3600:20/1800:1800"]

{[%evp 32,106,82,81,76,80,110,114,119,73,167,80,89,92,84,75,83,87,96,77,87,79,79,72,83,65,68,61,62,68,68,76,59,60,61,63,55,53,100,100,100,100,108,108,117,117,167,162,247,249,251,254,310,250,574,556,487,459,29971,19,20,8,8,8,8,8,8,8,8,8,8,8,8,8,8,8,8]} 1. e4 {[%emt 0:00:03]} e5 {[%emt 0:00:04]} 2. Nf3 {[%emt 0:00:08]} Nc6 {[%emt 0:00:05]} 3. Bb5 {[%emt 0:00:10]} a6 {[%emt 0:00:05]} 4. Ba4 {[%emt 0:00:06]} Nf6 {[%emt 0:00:04]} 5. O-O {[%emt 0:00:08]} Nxe4 {[%emt 0:00:04]} 6. d4 {[%emt 0:00:18]} Be7 {[%emt 0:00:05]} 7. Qe2 {[%emt 0:02:13]} b5 {[%emt 0:01:36] C84: Closed Ruy Lopez: Unusual White 6th moves.} 8. Bb3 {[%emt 0:01:11]} d5 {[%emt 0:00:23]} 9. dxe5 {[%emt 0:00:29]} Nc5 {[%emt 0:02:39]} 10. Rd1 {[%emt 0:02:01]} Nxb3 {[%emt 0:02:33]} 11. cxb3 $146 {[%emt 0:01:34]} ({Predecessor:} 11. axb3 Bg4 12. h3 Bh5 13. Nc3 Nb4 14. g4 Bg6 15. Nd4 h5 16. Bf4 hxg4 17. hxg4 {0-1 Soltanici,R (2409)-Pultinevicius,P (2510) Titled Tuesday intern op1 4th Febr blitz 2020 (2)}) 11... Bf5 {[%emt 0:11:09]} 12. Be3 {[%emt 0:03:23]} O-O {[%emt 0:00:08]} 13. Nc3 {[%emt 0:02:12]} Be6 {[%emt 0:06:12]} 14. Qd2 {[%emt 0:08:01]} d4 {[%emt 0:02:37]} 15. Bxd4 {[%emt 0:01:00]} Bg4 {[%emt 0:02:05]} 16. Qf4 {[%emt 0:02:12]} Bxf3 {[%emt 0:00:33]} 17. gxf3 {[%emt 0:00:10]} Qd7 {[%emt 0:06:03]} 18. Qe4 {[%emt 0:01:06]} Nxd4 {[%emt 0:06:36]} 19. Rxd4 {[%emt 0:00:12]} Qe6 {[%emt 0:00:10]} 20. Rad1 {[%emt 0:02:46]} (20. Nd5 $142 Rac8 21. Rc1) 20... f6 {[%emt 0:05:13] [#]} (20... Bc5 $16 {might work better.}) 21. exf6 {[%emt 0:04:02]} (21. Nd5 $1 $18 {has better winning chances.} fxe5 22. Nxc7) 21... Qxf6 {[%emt 0:00:42]} 22. Nd5 {[%emt 0:00:40]} Qg5+ {[%emt 0:00:04]} 23. Qg4 {[%emt 0:00:13]} Qxg4+ {[%emt 0:00:07]} 24. fxg4 {[%emt 0:00:10]} Bd6 {[%emt 0:01:07]} 25. Kg2 {[%emt 0:00:47]} Rae8 {[%emt 0:00:18]} 26. R4d2 {[%emt 0:00:47]} h5 {[%emt 0:02:02]} 27. h3 {[%emt 0:00:11]} Re4 {[%emt 0:00:31]} 28. f3 {[%emt 0:03:56]} Re6 {[%emt 0:00:07]} 29. Rc2 {[%emt 0:01:41]} (29. gxh5 Rf5 $11) 29... hxg4 {[%emt 0:01:20]} 30. fxg4 {[%emt 0:00:00]} ({But not} 30. hxg4 Rh6 31. Rf2 Rh2+ 32. Kf1 Rh3 $11) 30... c6 {[%emt 0:00:00]} 31. Nc3 {[%emt 0:00:19]} ({Don't play} 31. Rxc6 Re2+ 32. Kh1 Bg3 $15) 31... Rfe8 {[%emt 0:06:15]} 32. Rdd2 {[%emt 0:04:01]} Bb4 {[%emt 0:05:45]} 33. a3 {[%emt 0:05:17]} Bxc3 {[%emt 0:01:23]} 34. Rxc3 {[%emt 0:00:10]} b4 {[%emt 0:05:46]} (34... a5 $1 $14) 35. axb4 $16 {[%emt 0:00:14]} Re4 {[%emt 0:03:30]} 36. Rxc6 {[%emt 0:06:18]} Rxb4 {[%emt 0:00:06]} 37. Rc3 {[%emt 0:02:25]} Rbe4 {[%emt 0:04:15]} 38. Kf3 {[%emt 0:03:02]} Re1 {[%emt 0:00:21]} (38... Rb4 $16 39. Rd6 Rf8+ 40. Kg3 Rfb8) 39. Rd6 $18 {[%emt 0:02:07]} R1e2 {[%emt 0:02:02]} (39... a5 $142 40. Ra6 Rb1) 40. Rxa6 $18 {[%emt 0:01:21]} Rxb2 {[%emt 0:00:04]} 41. Rb6 {[%emt 0:00:20]} Re1 {[%emt 0:02:22]} 42. Kf4 {[%emt 0:01:10]} Rh1 $2 {[%emt 0:00:33]} (42... Rbe2 {is more resistant.} 43. Kg5 Re5+ 44. Kh4 Rd5) 43. Kg5 $18 {[%emt 0:00:53]} Kh7 {[%emt 0:00:17]} 44. Rc7 {[%emt 0:00:58]} Rxh3 {[%emt 0:00:13] [#]} (44... Rd2 $18 45. Rh6+ Kg8) 45. b4 $2 {[%emt 0:01:26]} (45. Rg6 $1 {mates} Kh8 46. Rcxg7 Rh5+ 47. gxh5 (47. Kxh5 Rh2+ 48. Kg5 Rh5+ 49. Kf6 Rf5+ 50. Ke7 Rf7+ 51. Ke6 Re7+ 52. Kd6 Rd7+ 53. Kc6 Rc7+ 54. Kb5 Rc5+ 55. Kb6 Rb5+ 56. Ka7 Rb7+ 57. Ka6 Ra7+ 58. Kb5 Ra5+ 59. Kc4 Rc5+ 60. Kd4 Rc4+ 61. Kd5 Rc5+ 62. Kd6 Rd5+ 63. Kc7 Rd7+ 64. Kc6 Rc7+ 65. Kb6 Rb7+ 66. Ka6 Ra7+ 67. Kb6 Rb7+ 68. Kc6 Rc7+ $11) 47... Rg2+ 48. Kf6 Rf2+ 49. Ke6 Re2+ 50. Kd6 Rd2+ 51. Kc6 Rc2+ 52. Kb6) 45... Rd3 $11 {[%emt 0:00:37]} 46. Rh6+ {[%emt 0:05:30]} Kg8 {[%emt 0:00:01]} 47. Rg6 {[%emt 0:02:22]} Rd5+ {[%emt 0:00:04]} 48. Kh4 {[%emt 0:00:07]} Rxb4 {[%emt 0:00:14]} 49. Rcxg7+ {[%emt 0:00:26]} Kh8 {[%emt 0:00:27]} 50. Ra7 {[%emt 0:00:00]} Rb1 {[%emt 0:00:00]} 51. Rh6+ {[%emt 0:02:17]} Kg8 {[%emt 0:00:17]} 52. Rc6 {[%emt 0:00:11]} Rh1+ {[%emt 0:01:49]} 53. Kg3 {[%emt 0:00:05]} Rd8 {[%emt 0:00:25]} 1/2-1/2

[Event "WR Chess Masters Cup 2024"]
[Site "London"]
[Date "2024.10.14"]
[Round "1.1"]
[White "Praggnanandhaa R"]
[Black "Bologan, Victor"]
[Result "1-0"]
[ECO "E26"]
[WhiteElo "2746"]
[BlackElo "2608"]
[Annotator "TA"]
[PlyCount "51"]
[EventDate "2024.10.12"]
[EventType "k.o."]
[EventCountry "ENG"]
[SourceTitle "playchess.com"]
[Source "ChessBase"]
[SourceQuality "1"]
[TimeControl "30/3600:20/1800:1800"]

{[%evp 14,51,0,0,45,50,47,43,47,0,11,13,7,5,52,63,96,97,91,93,120,110,123,27,34,34,22,22,99,92,329,304,571,554,635,621,1248,1238,1151,1139]} 1. d4 {[%emt 0:00:03]} Nf6 {[%emt 0:02:25]} 2. c4 {[%emt 0:00:02]} e6 {[%emt 0:00:06]} 3. Nc3 {[%emt 0:00:30]} Bb4 {[%emt 0:00:06]} 4. a3 {[%emt 0:00:05]} Bxc3+ {[%emt 0:00:15]} 5. bxc3 {[%emt 0:00:02]} c5 {[%emt 0:10:40]} 6. e3 {[%emt 0:00:06]} Nc6 {[%emt 0:00:31]} 7. Bd3 {[%emt 0:00:10]} b6 {[%emt 0:01:34]} 8. e4 {[%emt 0:06:42]} e5 {[%emt 0:05:52]} 9. d5 {[%emt 0:08:28][%cal Of2f4] Black must now prevent f4!} Na5 {[%emt 0:01:03]} 10. f4 {[%emt 0:01:09]} d6 {[%emt 0:02:41] White is slightly better.} 11. fxe5 {[%emt 0:02:41]} (11. Nf3 $14) 11... dxe5 {[%emt 0:00:46][%cal Of6e4]} 12. Nf3 {[%emt 0:00:52]} Qe7 {[%emt 0:02:07]} 13. Bg5 {[%emt 0:03:56][%cal Bc1g5,Bg5h4,Bh4g3][%mdl 32]} h6 {[%emt 0:01:43]} (13... O-O $11) 14. Bh4 $14 {[%emt 0:00:06]} g5 {[%emt 0:10:35]} 15. Bg3 {[%emt 0:01:30]} Nd7 {[%emt 0:04:44]} 16. O-O {[%emt 0:03:26]} h5 {[%emt 0:02:56]} 17. Be2 $36 {[%emt 0:09:39][%mdl 2048] aiming for d6. Black is under strong pressure.} Nb7 {[%emt 0:03:33] [#]} 18. d6 {[%emt 0:02:47] White is more active.} Nxd6 $11 {[%emt 0:05:37][%cal Oc8b7] [#] ...Bb7! is the strong threat.} 19. Nxe5 $1 {[%emt 0:00:20]} Nxe5 {[%emt 0:00:18]} 20. Qd5 {[%emt 0:00:05][%cal Og3e5]} Bb7 {[%emt 0:00:36]} (20... Ndxc4 $1 $11 21. Bxc4 (21. Qxa8 O-O $11) 21... Nxc4) 21. Qxe5 $16 {[%emt 0:00:02]} Rh6 {[%emt 0:00:27] [#] This costs Black the game.} (21... Qxe5 $16 22. Bxe5 Rh6) 22. Qg7 $1 $18 {[%emt 0:01:16]} Rg6 {[%emt 0:00:30]} (22... Qf8 23. Qxg5 Nxe4) 23. Qh8+ {[%emt 0:00:23] White is clearly winning.} Kd7 {[%emt 0:00:08]} 24. Qxh5 {[%emt 0:00:08]} Qxe4 {[%emt 0:00:10][%csl Gb7][%cal Re4g2]} 25. Bg4+ {[%emt 0:02:25] A strong pair of Bishops.} f5 {[%emt 0:00:32]} 26. Qh7+ {[%emt 0:00:33] Weighted Error Value: White=0.11 (very precise) /Black=0.76.  Loses game:     	---       	Black=1      Mistake:       	White=2     	Black=3      Inaccurate:     	---       	Black=2      OK:         	White=7     	Black=3      Best:        	White=3     	Black=1      Strong:       	White=1     	---        Brilliant:      	White=1     	---} (26. Qxg6 $2 Qxg2#) 1-0